fUSD/lending_fUSD_20240215
["ID","MTS","AMOUNT","RATE_DAILY","PERIOD"]
[314144839,1708019516038,-201.18,0.0004198,61]
[314144840,1708019516047,-172.59,0.0004198,61]
[314144841,1708019516057,-350.24,0.0004198,61]
[314144842,1708019516066,-159.44,0.0004198,61]
[314144843,1708019516076,-296.1,0.0004198,61]
[314144844,1708019516085,-200.0,0.00041987,21]
[314144845,1708019516095,-200.0,0.00041987,19]
[314144846,1708019516105,-200.0,0.00041987,17]
[314144847,1708019516115,-200.0,0.00041987,15]
[314144848,1708019516124,-200.0,0.00041987,25]
[314144849,1708019516135,-200.0,0.00041987,24]
[314144850,1708019516145,-200.0,0.00041987,30]
[314144851,1708019516155,-200.0,0.00041987,16]
[314144852,1708019516165,-200.0,0.00041987,14]
[314144853,1708019516174,-200.0,0.00041987,12]
[314144854,1708019516185,-666.0,0.00041989,2]
[314144855,1708019516195,-158.0,0.0004199,61]
[314144856,1708019516205,-158.0,0.0004199,61]
[314144857,1708019516215,-170.0,0.0004199,61]
[314144858,1708019516224,-341.0,0.0004199,61]
[314144859,1708019516234,-341.0,0.0004199,61]
[314144860,1708019516244,-150.5,0.0004199,61]
[314144861,1708019516254,-170.0,0.0004199,61]
[314144862,1708019516264,-341.0,0.0004199,61]
[314144863,1708019516274,-158.0,0.0004199,61]
[314144864,1708019516284,-306.62967803,0.0004199,30]
[314144865,1708019516295,-917.0,0.0004199,2]
[314144866,1708019516305,-732.0,0.0004199,2]
[314144867,1708019516315,-242.69804282,0.00041995,5]
[314144868,1708019516324,-100000.0,0.00042,22]
[314144869,1708019516334,-63280.54454679,0.00042,5]
[314144870,1708019516344,-13710.0,0.00042,7]
[314144871,1708019516353,-312.00317405,0.00042,25]
[314144872,1708019516363,-442.2871075,0.00042,30]
[314144873,1708019516372,-54816.97981996,0.00042,30]
[314144874,1708019516382,-120805.70905476,0.00042,120]
[314144875,1708019516392,-6000.0,0.00042,60]
[314144876,1708019516401,-1916.0,0.00042,10]
[314144877,1708019516411,-1014.0,0.00042,30]
[314144878,1708019516420,-800.0,0.00042,7]
[314144879,1708019516429,-1500.0,0.00042,120]
[314144880,1708019516439,-1500.0,0.00042,120]
[314144881,1708019516450,-46786.57408446,0.00042,2]
[314144882,1708019516461,-500.0,0.00042,7]
[314144883,1708019516470,-70891.49,0.00042,4]
[314144884,1708019516480,-41020.17534463,0.00042,2]
[314144885,1708019516491,-30000.0,0.00042,120]
[314144886,1708019516500,-500.40503164,0.00042,60]
[314144887,1708019516509,-2000.0,0.00042,30]
[314144888,1708019516518,-20000.0,0.00042,12]
[314144889,1708019516530,-199.0,0.00042,6]
[314144890,1708019516539,-150.0,0.00042,60]
[314144891,1708019516548,-2000.0,0.00042,2]
[314144892,1708019516557,-2000.0,0.00042,2]
[314144893,1708019516567,-2000.0,0.00042,2]
[314144894,1708019516576,-2000.0,0.00042,2]
[314144895,1708019516585,-2000.0,0.00042,2]
[314144896,1708019516594,-2000.0,0.00042,2]
[314144897,1708019516604,-2000.0,0.00042,2]
[314144898,1708019516614,-2000.0,0.00042,2]
[314144899,1708019516624,-2000.0,0.00042,2]
[314144900,1708019516633,-10000.0,0.00042,20]
[314144901,1708019516643,-2000.0,0.00042,2]
[314144902,1708019516654,-331539.64611729,0.00042,30]
[314144903,1708019516664,-3000.0,0.00042,120]
[314144904,1708019516674,-1000.0,0.00042,7]
[314144905,1708019516683,-1000.0,0.00042,7]
[314144906,1708019516693,-1000.0,0.00042,7]
[314144907,1708019516702,-1000.0,0.00042,7]
[314144908,1708019516712,-2998.41,0.00042,7]
[314144909,1708019516721,-2160.89,0.00042,7]
[314144910,1708019516730,-1000.0,0.00042,14]
[314144911,1708019516739,-1000.0,0.00042,14]
[314144912,1708019516749,-1000.0,0.00042,14]
[314144913,1708019516759,-103021.7758,0.00042,59]
[314144914,1708019516769,-5500.0,0.00042,4]
[314144915,1708019516778,-207359.1303892,0.00042,2]
[314144916,1708019516789,-1145.83058043,0.00042,15]
[314144917,1708019516798,-1545.56509409,0.00042,15]
[314144918,1708019516808,-387.46184151,0.00042,15]
[314144919,1708019516817,-1000.0,0.00042,2]
[314144920,1708019516827,-209.41931368,0.00042,30]
[314144921,1708019516836,-1688.0,0.00042,120]
[314144922,1708019516846,-200.93774679,0.00042,15]
[314144923,1708019516856,-359.00533787,0.00042,30]
[314144924,1708019516866,-226.58018693,0.00042,15]
[314144925,1708019516876,-546.83962614,0.00042,15]
[314144926,1708019516885,-1903.12,0.00042,15]
[314144927,1708019516895,-158.5665259,0.00042,15]
[314144928,1708019516904,-182.70877227,0.00042,15]
[314144929,1708019516914,-300.0,0.00042,43]
[314144930,1708019516925,-340.88853845,0.00042,15]
[314144931,1708019516935,-8177.0,0.00042,30]
[314144932,1708019516945,-334.28559975,0.00042,30]
[314144933,1708019516957,-19730.74,0.00042,120]
[314144934,1708019516967,-150.0,0.00042,31]
[314144935,1708019516977,-370.96,0.00042,120]
[314144936,1708019516986,-24000.0,0.00042,120]
[314144937,1708019516996,-907.0,0.00042,30]
[314144938,1708019517005,-1224.98529254,0.00042,30]
[314144939,1708019517014,-736.44471829,0.00042,30]
[314144940,1708019517024,-200.0,0.00042,49]
[314144941,1708019517033,-1457.78,0.00042,4]
[314144942,1708019517044,-1457.78,0.00042,4]
[314144943,1708019517054,-1457.78,0.00042,4]
[314144944,1708019517063,-1457.78,0.00042,4]
[314144945,1708019517073,-1457.78,0.00042,4]
[314144946,1708019517083,-1457.78,0.00042,4]
[314144947,1708019517093,-1457.78,0.00042,4]
[314144948,1708019517103,-1457.78,0.00042,4]
[314144949,1708019517112,-1457.78,0.00042,4]
[314144950,1708019517123,-1457.78,0.00042,4]
[314144951,1708019517132,-1457.78,0.00042,4]
[314144952,1708019517142,-1457.78,0.00042,4]
[314144953,1708019517151,-1457.78,0.00042,4]
[314144954,1708019517161,-1457.78,0.00042,4]
[314144955,1708019517171,-1457.78,0.00042,4]
[314144956,1708019517180,-1457.78,0.00042,4]
[314144957,1708019517189,-1457.78,0.00042,4]
[314144958,1708019517199,-1457.78,0.00042,4]
[314144959,1708019517209,-1457.78,0.00042,4]
[314144960,1708019517218,-1457.78,0.00042,4]
[314144961,1708019517228,-1486.38677749,0.00042,30]
[314144962,1708019517237,-900.0,0.00042,7]
[314144963,1708019517247,-1223681.12851709,0.00042,2]
[314144964,1708019517257,-153.74,0.00042,4]
[314144965,1708019517268,-153.74,0.00042,4]
[314144966,1708019517278,-153.74,0.00042,4]
[314144967,1708019517288,-153.74,0.00042,4]
[314144968,1708019517298,-754.3842302,0.00042,2]
[314144969,1708019517308,-200.0,0.00042,2]
[314144970,1708019517319,-238.221273,0.00042,15]
[314144971,1708019517330,-7848.537257,0.00042,6]
[314144972,1708019517339,-150.0,0.00042,2]
[314144973,1708019517349,-1989.110431,0.00042,15]
[314144974,1708019517360,-200.0,0.00042,2]
[314144975,1708019517371,-151.18119458,0.00042027,30]
[314144976,1708019517382,-1412.0184,0.00042029,5]
[314144977,1708019517507,-225.03163478,0.00042049,15]
[314144978,1708019517528,-1082.41487138,0.00042049,15]
[314144979,1708019517539,-849.68006414,0.00042049,15]
[314144980,1708019517549,-177.05891899,0.00042049,15]
[314144981,1708019517559,-500.0,0.0004206,2]
[314144982,1708019517569,-500.0,0.0004206,2]
[314144983,1708019517579,-500.0,0.0004206,2]
[314144984,1708019517589,-500.0,0.0004206,2]
[314144985,1708019517598,-500.0,0.0004206,2]
[314144986,1708019517608,-500.0,0.0004206,2]
[314144987,1708019517618,-500.0,0.0004206,2]
[314144988,1708019517628,-500.0,0.0004206,2]
[314144989,1708019517638,-500.0,0.0004206,2]
[314144990,1708019517648,-500.0,0.0004206,2]
[314144991,1708019517658,-500.0,0.0004206,2]
[314144992,1708019517668,-500.0,0.0004206,2]
[314144993,1708019517678,-500.0,0.0004206,2]
[314144994,1708019517688,-500.0,0.0004206,2]
[314144995,1708019517698,-500.0,0.0004206,2]
[314144996,1708019517708,-500.0,0.0004206,2]
[314144997,1708019517718,-500.0,0.0004206,2]
[314144998,1708019517727,-500.0,0.0004206,2]
[314144999,1708019517737,-500.0,0.0004206,2]
[314145000,1708019517747,-500.0,0.0004206,2]
[314145001,1708019517757,-500.0,0.0004206,2]
[314145002,1708019517767,-500.0,0.0004206,2]
[314145003,1708019517777,-500.0,0.0004206,2]
[314145004,1708019517788,-500.0,0.0004206,2]
[314145005,1708019517797,-500.0,0.0004206,2]
[314145006,1708019517807,-500.0,0.0004206,2]
[314145007,1708019517817,-500.0,0.0004206,2]
[314145008,1708019517826,-500.0,0.0004206,2]
[314145009,1708019517836,-500.0,0.0004206,2]
[314145010,1708019517846,-500.0,0.0004206,2]
[314145011,1708019517856,-500.0,0.0004206,2]
[314145012,1708019517866,-500.0,0.0004206,2]
[314145013,1708019517875,-500.0,0.0004206,2]
[314145014,1708019517885,-500.0,0.0004206,2]
[314145015,1708019517895,-300.0,0.0004206,2]
[314145016,1708019517905,-500.0,0.0004206,2]
[314145017,1708019517916,-500.0,0.0004206,2]
[314145018,1708019517925,-500.0,0.0004206,2]
[314145019,1708019517936,-500.0,0.0004206,2]
[314145020,1708019517946,-500.0,0.0004206,2]
[314145021,1708019517956,-500.0,0.0004206,2]
[314145022,1708019517965,-500.0,0.0004206,2]
[314145023,1708019517975,-500.0,0.0004206,2]
[314145024,1708019517986,-500.0,0.0004206,2]
[314145025,1708019517995,-500.0,0.0004206,2]
[314145026,1708019518005,-500.0,0.0004206,2]
[314145027,1708019518014,-500.0,0.0004206,2]
[314145028,1708019518024,-500.0,0.0004206,2]
[314145029,1708019518033,-500.0,0.0004206,2]
[314145030,1708019518044,-500.0,0.0004206,2]
[314145031,1708019518053,-500.0,0.0004206,2]
[314145032,1708019518063,-500.0,0.0004206,2]
[314145033,1708019518073,-500.0,0.0004206,2]
[314145034,1708019518082,-500.0,0.0004206,2]
[314145035,1708019518091,-500.0,0.0004206,2]
[314145036,1708019518101,-500.0,0.0004206,2]
[314145037,1708019518110,-500.0,0.0004206,2]
[314145038,1708019518120,-500.0,0.0004206,2]
[314145039,1708019518129,-500.0,0.0004206,2]
[314145040,1708019518139,-500.0,0.0004206,2]
[314145041,1708019518149,-500.0,0.0004206,2]
[314145042,1708019518159,-500.0,0.0004206,2]
[314145043,1708019518169,-500.0,0.0004206,2]
[314145044,1708019518179,-500.0,0.0004206,2]
[314145045,1708019518189,-500.0,0.0004206,2]
[314145046,1708019518198,-500.0,0.0004206,2]
[314145047,1708019518208,-500.0,0.0004206,2]
[314145048,1708019518218,-500.0,0.0004206,2]
[314145049,1708019518227,-500.0,0.0004206,2]
[314145050,1708019518237,-500.0,0.0004206,2]
[314145051,1708019518245,-500.0,0.0004206,2]
[314145052,1708019518255,-500.0,0.0004206,2]
[314145053,1708019518264,-500.0,0.0004206,2]
[314145054,1708019518274,-500.0,0.0004206,2]
[314145055,1708019518283,-500.0,0.0004206,2]
[314145056,1708019518294,-500.0,0.0004206,2]
[314145057,1708019518303,-500.0,0.0004206,2]
[314145058,1708019518312,-500.0,0.0004206,2]
[314145059,1708019518321,-500.0,0.0004206,2]
[314145060,1708019518331,-500.0,0.0004206,2]
[314145061,1708019518340,-500.0,0.0004206,2]
[314145062,1708019518350,-500.0,0.0004206,2]
[314145063,1708019518359,-500.0,0.0004206,2]
[314145064,1708019518368,-500.0,0.0004206,2]
[314145065,1708019518377,-500.0,0.0004206,2]
[314145066,1708019518386,-500.0,0.0004206,2]
[314145067,1708019518396,-500.0,0.0004206,2]
[314145068,1708019518406,-500.0,0.0004206,2]
[314145069,1708019518415,-500.0,0.0004206,2]
[314145070,1708019518425,-500.0,0.0004206,2]
[314145071,1708019518435,-500.0,0.0004206,2]
[314145072,1708019518445,-500.0,0.0004206,2]
[314145073,1708019518458,-500.0,0.0004206,2]
[314145074,1708019518467,-500.0,0.0004206,2]
[314145075,1708019518477,-500.0,0.0004206,2]
[314145076,1708019518495,-500.0,0.0004206,2]
[314145077,1708019518512,-500.0,0.0004206,2]
[314145078,1708019518530,-500.0,0.0004206,2]
[314145079,1708019518549,-500.0,0.0004206,2]
[314145080,1708019518564,-500.0,0.0004206,2]
[314145081,1708019518581,-500.0,0.0004206,2]
[314145082,1708019518597,-500.0,0.0004206,2]
[314145083,1708019518618,-500.0,0.0004206,2]
[314145084,1708019518634,-500.0,0.0004206,2]
[314145085,1708019518653,-500.0,0.0004206,2]
[314145086,1708019518673,-500.0,0.0004206,2]
[314145087,1708019518686,-500.0,0.0004206,2]
[314145088,1708019518703,-500.0,0.0004206,2]
[314145089,1708019518720,-500.0,0.0004206,2]
[314145090,1708019518735,-500.0,0.0004206,2]
[314145091,1708019518751,-500.0,0.0004206,2]
[314145092,1708019518766,-500.0,0.0004206,2]
[314145093,1708019518782,-500.0,0.0004206,2]
[314145094,1708019518798,-500.0,0.0004206,2]
[314145095,1708019518813,-500.0,0.0004206,2]
[314145096,1708019518828,-500.0,0.0004206,2]
[314145097,1708019518843,-500.0,0.0004206,2]
[314145098,1708019518858,-500.0,0.0004206,2]
[314145099,1708019518875,-500.0,0.0004206,2]
[314145100,1708019518889,-500.0,0.0004206,2]
[314145101,1708019518904,-500.0,0.0004206,2]
[314145102,1708019518920,-24000.0,0.0004206,120]
[314145103,1708019518936,-151.18119458,0.0004207,30]
[314145104,1708019518951,-163.38805687,0.00042083,15]
[314145105,1708019518965,-3349.56,0.00042092,15]
[314145106,1708019518981,-5060.54363163,0.00042097,5]
[314145107,1708019518996,-150.0,0.00042119,3]
[314145108,1708019519010,-4391.59125946,0.00042138,5]
[314145109,1708019519025,-6142.23583076,0.00042164,5]
[314145110,1708019519039,-151.18119458,0.00042169,30]
[314145111,1708019519054,-151.18119458,0.00042175,30]
[314145112,1708019519069,-2021.98,0.00042191,7]
[314145113,1708019519083,-541.83,0.00042191,30]
[314145114,1708019519097,-500.0,0.00042191,30]
[314145115,1708019519113,-530.12,0.00042191,30]
[314145116,1708019519128,-856.02,0.00042191,30]
[314145117,1708019519142,-1019.76,0.00042191,30]
[314145118,1708019519156,-500.0,0.00042191,30]
[314145119,1708019519173,-600.0,0.00042191,30]
[314145120,1708019519188,-550.0,0.00042191,7]
[314145121,1708019519202,-756.7,0.00042191,30]
[314145122,1708019519217,-704.22,0.00042191,30]
[314145123,1708019519232,-500.0,0.00042191,30]
[314145124,1708019519249,-1361.43,0.00042191,7]
[314145125,1708019519263,-312.8092931,0.00042191,30]
[314145126,1708019519278,-1000.0,0.00042191,7]
[314145127,1708019519294,-1271.29,0.00042191,30]
[314145128,1708019519310,-598.49,0.00042191,30]
[314145129,1708019519325,-974.33,0.00042191,30]
[314145130,1708019519340,-500.0,0.00042191,30]
[314145131,1708019519355,-500.0,0.00042191,30]
[314145132,1708019519372,-500.0,0.00042191,30]
[314145133,1708019519388,-500.0,0.00042191,30]
[314145134,1708019519404,-693.16,0.00042191,30]
[314145135,1708019519420,-500.0,0.00042191,30]
[314145136,1708019519442,-177.14,0.00042191,30]
[314145137,1708019519461,-500.0,0.00042191,30]
[314145138,1708019519485,-1893.96,0.00042191,30]
[314145139,1708019519501,-1000.0,0.00042191,7]
[314145140,1708019519517,-564.89,0.00042191,30]
[314145141,1708019519536,-824.46,0.00042191,30]
[314145142,1708019519553,-616.25,0.00042191,30]
[314145143,1708019519569,-793.39,0.00042191,30]
[314145144,1708019519584,-649.79,0.00042191,30]
[314145145,1708019519600,-536.14,0.00042191,2]
[314145146,1708019519615,-500.0,0.00042191,30]
[314145147,1708019519631,-500.0,0.00042191,30]
[314145148,1708019519647,-500.0,0.00042191,30]
[314145149,1708019519662,-154.00762571,0.00042191,30]
[314145150,1708019519678,-500.0,0.00042191,30]
[314145151,1708019519693,-1207.79,0.00042191,30]
[314145152,1708019519708,-500.0,0.00042191,30]
[314145153,1708019519723,-500.0,0.00042191,30]
[314145154,1708019519740,-734.84,0.00042191,2]
[314145155,1708019519754,-500.0,0.00042191,30]
[314145156,1708019519770,-1247.33,0.00042191,30]
[314145157,1708019519784,-1915.49,0.00042191,30]
[314145158,1708019519799,-974.82,0.00042191,14]
[314145159,1708019519814,-989.83,0.00042191,30]
[314145160,1708019519828,-3861.24,0.00042191,30]
[314145161,1708019519842,-326.25650725,0.00042191,30]
[314145162,1708019519856,-500.0,0.00042191,30]
[314145163,1708019519871,-846.99,0.00042191,30]
[314145164,1708019519885,-500.0,0.00042191,30]
[314145165,1708019519899,-988.14,0.00042191,30]
[314145166,1708019519914,-3759.08,0.00042191,30]
[314145167,1708019519933,-500.0,0.00042191,30]
[314145168,1708019519949,-1634.49,0.00042191,30]
[314145169,1708019519964,-2514.11,0.00042191,30]
[314145170,1708019519979,-500.0,0.00042191,30]
[314145171,1708019519995,-4422.2,0.00042191,30]
[314145172,1708019520205,-229.08034828,0.00042191,30]
[314145173,1708019520215,-500.0,0.00042191,30]
[314145174,1708019520226,-663.11,0.00042191,30]
[314145175,1708019520235,-500.0,0.00042191,30]
[314145176,1708019520245,-775.66,0.00042191,30]
[314145177,1708019520255,-500.0,0.00042191,30]
[314145178,1708019520266,-642.20702656,0.00042191,30]
[314145179,1708019520276,-607.71,0.00042191,30]
[314145180,1708019520286,-500.0,0.00042191,30]
[314145181,1708019520297,-500.0,0.00042191,7]
[314145182,1708019520307,-500.0,0.00042191,30]
[314145183,1708019520317,-402.9301824,0.00042191,30]
[314145184,1708019520326,-1744.6,0.00042191,30]
[314145185,1708019520336,-912.33,0.00042191,30]
[314145186,1708019520345,-500.0,0.00042191,30]
[314145187,1708019520354,-500.0,0.00042191,30]
[314145188,1708019520363,-1155.45,0.00042191,30]
[314145189,1708019520372,-1067.47,0.00042191,30]
[314145190,1708019520382,-519.85,0.00042191,30]
[314145191,1708019520392,-4410.01,0.00042191,30]
[314145192,1708019520403,-11001.71,0.00042191,30]
[314145193,1708019520412,-500.0,0.00042191,30]
[314145194,1708019520422,-3091.91,0.00042191,30]
[314145195,1708019520432,-500.0,0.00042191,30]
[314145196,1708019520442,-1258.05,0.00042191,30]
[314145197,1708019520453,-500.0,0.00042191,30]
[314145198,1708019520463,-842.08,0.00042191,30]
[314145199,1708019520473,-922.13,0.00042191,30]
[314145200,1708019520482,-656.01,0.00042191,30]
[314145201,1708019520492,-904.53,0.00042191,30]
[314145202,1708019520501,-3344.4,0.00042191,30]
[314145203,1708019520510,-2961.74,0.00042191,30]
[314145204,1708019520519,-500.0,0.00042191,30]
[314145205,1708019520529,-844.38,0.00042191,30]
[314145206,1708019520540,-500.0,0.00042191,30]
[314145207,1708019520550,-500.0,0.00042191,30]
[314145208,1708019520559,-1428.06,0.00042191,30]
[314145209,1708019520569,-535.86,0.00042191,30]
[314145210,1708019520579,-1125.27,0.00042191,30]
[314145211,1708019520588,-2160.8,0.00042191,30]
[314145212,1708019520598,-825.32,0.00042191,30]
[314145213,1708019520608,-537.94,0.00042191,30]
[314145214,1708019520617,-500.0,0.00042191,30]
[314145215,1708019520626,-677.81,0.00042191,30]
[314145216,1708019520635,-500.0,0.00042191,30]
[314145217,1708019520645,-1297.24,0.00042191,30]
[314145218,1708019520654,-500.0,0.00042191,30]
[314145219,1708019520663,-559.07,0.00042191,30]
[314145220,1708019520674,-500.0,0.00042191,30]
[314145221,1708019520683,-500.0,0.00042191,30]
[314145222,1708019520693,-2776.05,0.00042191,30]
[314145223,1708019520702,-4055.04,0.00042191,30]
[314145224,1708019520711,-4988.27,0.00042191,30]
[314145225,1708019520721,-500.0,0.00042191,30]
[314145226,1708019520730,-1472.71,0.00042191,30]
[314145227,1708019520739,-500.0,0.00042191,30]
[314145228,1708019520748,-500.0,0.00042191,30]
[314145229,1708019520758,-1663.68,0.00042191,30]
[314145230,1708019520767,-4949.84,0.00042191,30]
[314145231,1708019520776,-1970.1,0.00042191,30]
[314145232,1708019520786,-1101.62,0.00042191,30]
[314145233,1708019520796,-891.01,0.00042191,30]
[314145234,1708019520805,-500.0,0.00042191,30]
[314145235,1708019520814,-1111.21,0.00042191,30]
[314145236,1708019520823,-1055.37,0.00042191,30]
[314145237,1708019520832,-1292.58,0.00042191,30]
[314145238,1708019520841,-1203.88,0.00042191,30]
[314145239,1708019520850,-735.16,0.00042191,30]
[314145240,1708019520859,-996.39,0.00042191,30]
[314145241,1708019520869,-2325.06,0.00042191,30]
[314145242,1708019520878,-500.0,0.00042191,30]
[314145243,1708019520887,-500.0,0.00042191,30]
[314145244,1708019520896,-500.0,0.00042191,30]
[314145245,1708019520905,-5038.29,0.00042191,30]
[314145246,1708019520915,-500.0,0.00042191,30]
[314145247,1708019520925,-500.0,0.00042191,30]
[314145248,1708019520934,-765.74,0.00042191,30]
[314145249,1708019520943,-569.41,0.00042191,30]
[314145250,1708019520952,-4016.58,0.00042191,30]
[314145251,1708019520961,-524.19,0.00042191,30]
[314145252,1708019520971,-1145.21,0.00042191,30]
[314145253,1708019520980,-836.92,0.00042191,30]
[314145254,1708019520989,-619.17,0.00042191,30]
[314145255,1708019520999,-686.87,0.00042191,30]
[314145256,1708019521008,-563.72923789,0.00042191,30]
[314145257,1708019521017,-1463.4,0.00042191,30]
[314145258,1708019521026,-713.6,0.00042191,30]
[314145259,1708019521034,-3254.19,0.00042191,30]
[314145260,1708019521045,-607.96,0.00042191,30]
[314145261,1708019521054,-556.07,0.00042191,30]
[314145262,1708019521062,-500.0,0.00042191,30]
[314145263,1708019521071,-1450.92,0.00042191,30]
[314145264,1708019521080,-500.0,0.00042191,30]
[314145265,1708019521088,-553.92,0.00042191,30]
[314145266,1708019521097,-1417.47,0.00042191,30]
[314145267,1708019521106,-2730.4,0.00042191,30]
[314145268,1708019521116,-5934.21,0.00042191,30]
[314145269,1708019521126,-585.8,0.00042191,30]
[314145270,1708019521136,-633.51,0.00042191,30]
[314145271,1708019521146,-1019.85,0.00042191,30]
[314145272,1708019521156,-701.09,0.00042191,30]
[314145273,1708019521167,-500.0,0.00042191,30]
[314145274,1708019521177,-1857.32,0.00042191,30]
[314145275,1708019521186,-3563.59,0.00042191,30]
[314145276,1708019521195,-4513.55,0.00042191,30]
[314145277,1708019521205,-500.0,0.00042191,7]
[314145278,1708019521214,-1548.7,0.00042191,30]
[314145279,1708019521224,-500.0,0.00042191,30]
[314145280,1708019521234,-707.65,0.00042191,2]
[314145281,1708019521245,-1098.48,0.00042191,30]
[314145282,1708019521256,-6547.24,0.00042191,30]
[314145283,1708019521266,-500.0,0.00042191,30]
[314145284,1708019521276,-995.72,0.00042191,30]
[314145285,1708019521286,-993.29,0.00042191,30]
[314145286,1708019521297,-500.0,0.00042191,30]
[314145287,1708019521307,-47725.72,0.00042191,30]
[314145288,1708019521316,-1324.67,0.00042191,30]
[314145289,1708019521325,-5000.54,0.00042191,30]
[314145290,1708019521335,-1048.47,0.00042191,30]
[314145291,1708019521345,-1233.71,0.00042191,30]
[314145292,1708019521354,-2120.05,0.00042191,30]
[314145293,1708019521364,-552.81,0.00042191,30]
[314145294,1708019521373,-3896.96,0.00042191,30]
[314145295,1708019521383,-500.0,0.00042191,30]
[314145296,1708019521393,-4265.71,0.00042191,30]
[314145297,1708019521402,-500.0,0.00042191,30]
[314145298,1708019521412,-724.89,0.00042191,30]
[314145299,1708019521422,-588.09,0.00042191,30]
[314145300,1708019521431,-513.7,0.00042191,30]
[314145301,1708019521440,-9575.52,0.00042191,30]
[314145302,1708019521453,-2093.78,0.00042191,30]
[314145303,1708019521463,-496.64,0.00042198,2]
[314145304,1708019521472,-2680.41641179,0.00042198,46]
[314145305,1708019521482,-1000.0,0.00042199,120]
[314145306,1708019521492,-642.0,0.000422,61]
[314145307,1708019521501,-150.5,0.000422,61]
[314145308,1708019521510,-1180.7145322,0.000422,2]
[314145309,1708019521519,-300.0,0.000422,2]
[314145310,1708019521528,-151.0,0.000422,15]
[314145311,1708019521538,-238.221273,0.000422,16]
[314145312,1708019521548,-238.221273,0.000422,16]
[314145313,1708019521557,-155.055425,0.000422,13]
[314145314,1708019521566,-1989.110431,0.000422,16]
[314145315,1708019521575,-1989.110431,0.000422,16]
[314145316,1708019521585,-1000.0,0.00042205,2]
[314145317,1708019521595,-150.5,0.0004221,61]
[314145318,1708019521604,-261.5,0.0004221,61]
[314145319,1708019521613,-642.0,0.0004221,61]
[314145320,1708019521622,-150.5,0.0004221,61]
[314145321,1708019521631,-150.5,0.0004221,61]
[314145322,1708019521640,-158.0,0.0004221,61]
[314145323,1708019521649,-170.0,0.0004221,61]
[314145324,1708019521658,-212.02,0.0004222,61]
[314145325,1708019521667,-169.37,0.0004222,61]
[314145326,1708019521677,-150.5,0.0004222,61]
[314145327,1708019521686,-150.5,0.0004222,61]
[314145328,1708019521695,-642.0,0.0004222,61]
[314145329,1708019521705,-172.0,0.0004222,60]
[314145330,1708019521715,-150.5,0.0004222,61]
[314145331,1708019521724,-150.5,0.0004222,61]
[314145332,1708019521733,-201.77,0.0004222,61]
[314145333,1708019521742,-158.0,0.0004222,61]
[314145334,1708019521751,-165.72,0.0004222,61]
[314145335,1708019521760,-170.0,0.0004222,61]
[314145336,1708019521769,-150.5,0.0004223,61]
[314145337,1708019521779,-150.5,0.0004223,61]
[314145338,1708019521790,-220.14,0.0004223,61]